Workbook

Sheet Superpesis
B1: Mirjami Raitanen | E1: 13.4.1995 Turku
B2: SUPERPESIS | E2: Runkosarja | I2: Kärkilyönnit (KL), pesänvälit | P2: Ylempi loppusarja | U2: Alempi loppusarja | AB2: Arvo-ottelut ja mitalit
B3: Vuosi | C3: Sija | D3: Seura | E3: OTT | F3: KUN | G3: LÖI | H3: TOI | I3: KL | J3: 0 > 1 | K3: 1 > 2 | L3: 2 > 3 | M3: 3 > k | N3: KL-% | P3: OTT | Q3: KUN | R3: LÖI | S3: TOI | T3: KL | U3: OTT | V3: KUN | W3: LÖI | X3: TOI | Y3: KL | Z3: IL | AA3: LL | AB3: Halli | AC3: K | AD3: H | AE3: P
B4: 2014 | D4: MyVe | F4: suomensarja
B5: 2015 | D5: PöU | F5: suomensarja
B6: 2015 | D6: MyVe | F6: ykköspesis
B7: 2016 | D7: PöU | F7: suomensarja
B8: 2016 | D8: MyVe | F8: ykköspesis
B9: 2017 | D9: MyVe | F9: ykköspesis
B10: 2018 | D10: MyVe | F10: ykköspesis
B11: 2019 | C11: 10. | D11: MyVe | E11: 22 | F11: 3 | G11: 10 | H11: 14 | I11: 62 | J11: 34 | K11: 8 | L11: 7 | M11: 13 | N11: 45.9 % | O11: 135 | U11: 3 | V11: 0 | W11: 0 | X11: 0 | Y11: 3
B12: Yhteensä | E12: =SUM(E6:E11) -> 22 | F12: 3 | G12: 10 | H12: 14 | I12: 62 | J12: 34 | K12: 8 | L12: 7 | M12: 13 | N12: =PRODUCT(I12/O12) -> 45.9 % | O12: =SUM(O6:O11) -> 135 | P12: 0 | Q12: 0 | R12: 0 | S12: 0 | T12: 0 | U12: 3 | V12: 0 | W12: 0 | X12: 0 | Y12: 3 | Z12: 0 | AA12: 0 | AB12: 0 | AC12: 0 | AD12: 0 | AE12: 0
B13: Pesispörssi | D13: =SUM(F12:H12)+((I12-F12-G12)/3)+(E12/3)+(Z12*25)+(AA12*25)+(AB12*10)+(AC12*25)+(AD12*20)+(AE12*15) -> 50.7
B15: URA SUPERISSA | E15: OTT | F15: KUN | G15: LÖI | H15: TOI | I15: KL | K15: ka/L | L15: ka/T | M15: ka/KL | N15: KL-% | P15: ENSIMMÄISET
B16: Runkosarja | E16: =PRODUCT(E12) -> 22 | F16: =PRODUCT(F12) -> 3 | G16: =PRODUCT(G12) -> 10 | H16: =PRODUCT(H12) -> 14 | I16: =PRODUCT(I12) -> 62 | K16: =PRODUCT((F16+G16)/E16) -> 0.59 | L16: =PRODUCT(H16/E16) -> 0.64 | M16: =PRODUCT(I16/E16) -> 2.82 | N16: =PRODUCT(N12) -> 45.9 % | O16: =PRODUCT(O12) -> 135 | P16: Ottelu | R16: 12.05. 2019 Kirittäret - MyVe 2-0 (9-1, 5-1) | AA16: 1. ottelu | AE16: 24 v 0 kk 29 pv
B17: Ylempi loppusarja | P17: Lyöty | R17: 30.05. 2019 SMJ - MyVe 2-0 (7-3, 13-3) | AA17: 4. ottelu | AE17: 24 v 1 kk 17 pv
B18: Alempi loppusarja | E18: =PRODUCT(U12) -> 3 | F18: =PRODUCT(V12) -> 0 | G18: 0 | H18: 0 | I18: 3 | K18: =PRODUCT((F18+G18)/E18) -> 0.00 | L18: =PRODUCT(H18/E18) -> 0.00 | M18: =PRODUCT(I18/E18) -> 1.00 | N18: =PRODUCT(I18/O18) -> 25.0 % | O18: 12 | P18: Tuotu | R18: 18.05. 2019 KeKi - MyVe 1-0 (3-0, 3-3) | AA18: 3. ottelu | AE18: 24 v 1 kk 17 pv
B19: KAIKKI | E19: =SUM(E16:E18) -> 25 | F19: =SUM(F16:F18) -> 3 | G19: =SUM(G16:G18) -> 10 | H19: =SUM(H16:H18) -> 14 | I19: =SUM(I16:I18) -> 65 | K19: =PRODUCT((F19+G19)/E19) -> 0.52 | L19: =PRODUCT(H19/E19) -> 0.56 | M19: =PRODUCT(I19/E19) -> 2.60 | N19: =PRODUCT(I19/O19) -> 44.2 % | O19: =SUM(O16:O18) -> 147 | P19: Kunnari | R19: 03.07. 2019 MyVe - Kirittäret 1-2 (2-5, 7-6, 0-1) | AA19: 12. ottelu | AE19: 24 v 2 kk 20 pv
B21: Seurat | D21: PöU = Pöytyän Urheilijat (1945), kasvattajaseura
D22: MyVe = Mynämäen Vesa (1920)
